fUST/lending_fUST_20251011
["ID","MTS","AMOUNT","RATE_DAILY","PERIOD"]
[390883044,1760191853131,-151.0,0.00024546,7]
[390883045,1760191853140,-151.0,0.00024546,7]
[390883046,1760191853150,-151.0,0.00024546,7]
[390883047,1760191853160,-151.0,0.00024546,7]
[390883048,1760191853170,-862.110898,0.00024546,7]
[390883049,1760191853179,-862.110898,0.00024546,7]
[390883050,1760191853189,-862.110898,0.00024546,7]
[390883051,1760191853199,-862.110906,0.00024546,7]
[390883052,1760191853208,-151.0,0.00024546,7]
[390883053,1760191853218,-207.851259,0.00024546,7]
[390883054,1760191853228,-151.0,0.00024546,7]
[390883055,1760191853238,-207.851259,0.00024546,7]
[390883056,1760191853248,-207.851259,0.00024546,7]
[390883057,1760191853258,-207.851263,0.00024546,7]
[390883058,1760191853268,-151.0,0.00024546,7]
[390883059,1760191853279,-151.0,0.00024546,7]
[390883060,1760191853288,-151.0,0.00024546,7]
[390883061,1760191853298,-151.0,0.00024546,7]
[390883062,1760191853308,-151.0,0.00024546,7]
[390883063,1760191853317,-283.71004,0.00024546,7]
[390883064,1760191853327,-151.0,0.00024546,7]
[390883065,1760191853336,-151.0,0.00024546,7]
[390883066,1760191853346,-151.0,0.00024546,7]
[390883067,1760191853356,-151.0,0.00024546,7]
[390883068,1760191853365,-151.0,0.00024546,7]
[390883069,1760191853376,-151.0,0.00024546,7]
[390883070,1760191853386,-151.0,0.00024546,7]
[390883071,1760191853395,-151.0,0.00024546,7]
[390883072,1760191853404,-151.0,0.00024546,7]
[390883073,1760191853414,-161.727132,0.00024546,7]
[390883074,1760191853423,-161.727132,0.00024546,7]
[390883075,1760191853432,-151.0,0.00024546,7]
[390883076,1760191853442,-161.727132,0.00024546,7]
[390883077,1760191853453,-151.0,0.00024546,7]
[390883078,1760191853463,-161.727132,0.00024546,7]
[390883079,1760191853473,-161.727132,0.00024546,7]
[390883080,1760191853483,-161.727132,0.00024546,7]
[390883081,1760191853492,-161.727132,0.00024546,7]
[390883082,1760191853501,-161.72714,0.00024546,7]
[390883083,1760191853511,-151.0,0.00024546,7]
[390883084,1760191853520,-151.0,0.00024546,7]
[390883085,1760191853531,-151.0,0.00024546,7]
[390883086,1760191853539,-151.0,0.00024546,7]
[390883087,1760191853549,-151.0,0.00024546,7]
[390883088,1760191853558,-151.0,0.00024546,7]
[390883089,1760191853568,-151.0,0.00024546,7]
[390883090,1760191853577,-189.936242,0.00024546,7]
[390883091,1760191853586,-189.936242,0.00024546,7]
[390883092,1760191853596,-189.936242,0.00024546,7]
[390883093,1760191853605,-189.936242,0.00024546,7]
[390883094,1760191853614,-189.936242,0.00024546,7]
[390883095,1760191853623,-189.936242,0.00024546,7]
[390883096,1760191853632,-189.936242,0.00024546,7]
[390883097,1760191853642,-189.936251,0.00024546,7]
[390883098,1760191853651,-151.0,0.00024546,7]
[390883099,1760191853660,-151.0,0.00024546,7]
[390883100,1760191853669,-151.0,0.00024546,7]
[390883101,1760191853678,-151.0,0.00024546,7]
[390883102,1760191853687,-151.0,0.00024546,7]
[390883103,1760191853696,-151.0,0.00024546,7]
[390883104,1760191853825,-151.0,0.00024546,7]
[390883105,1760191853837,-167.074709,0.00024546,7]
[390883106,1760191853847,-151.0,0.00024546,7]
[390883107,1760191853856,-151.0,0.00024546,7]
[390883108,1760191853865,-183.603591,0.00024546,7]
[390883109,1760191853874,-183.603591,0.00024546,7]
[390883110,1760191853884,-183.603591,0.00024546,7]
[390883111,1760191853894,-151.0,0.00024546,7]
[390883112,1760191853907,-183.603586,0.00024546,7]
[390883113,1760191853917,-151.0,0.00024546,7]
[390883114,1760191853927,-151.0,0.00024546,7]
[390883115,1760191853937,-151.0,0.00024546,7]
[390883116,1760191853947,-244.492781,0.00024546,7]
[390883117,1760191853956,-535.181944,0.00024546,7]
[390883118,1760191853966,-535.181944,0.00024546,7]
[390883119,1760191853975,-535.181944,0.00024546,7]
[390883120,1760191853987,-200.0,0.0002455,10]
[390883121,1760191853996,-1000.0,0.00024554,2]
[390883122,1760191854006,-151.0,0.00024555,7]
[390883123,1760191854015,-151.0,0.00024555,7]
[390883124,1760191854026,-151.0,0.00024555,7]
[390883125,1760191854036,-151.0,0.00024555,7]
[390883126,1760191854046,-151.0,0.00024555,7]
[390883127,1760191854056,-151.0,0.00024555,7]
[390883128,1760191854066,-151.0,0.00024555,7]
[390883129,1760191854076,-151.0,0.00024555,7]
[390883130,1760191854086,-151.0,0.00024555,7]
[390883131,1760191854096,-151.0,0.00024555,7]
[390883132,1760191854106,-151.0,0.00024555,7]
[390883133,1760191854115,-151.0,0.00024555,7]
[390883134,1760191854125,-157.416239,0.00024555,7]
[390883135,1760191854134,-151.0,0.00024555,7]
[390883136,1760191854143,-755.13679,0.00024555,7]
[390883137,1760191854153,-755.13679,0.00024555,7]
[390883138,1760191854162,-755.13679,0.00024555,7]
[390883139,1760191854172,-755.136792,0.00024555,7]
[390883140,1760191854182,-822.743994,0.00024555,7]
[390883141,1760191854192,-151.0,0.00024555,7]
[390883142,1760191854202,-822.743994,0.00024555,7]
[390883143,1760191854211,-151.0,0.00024555,7]
[390883144,1760191854221,-822.743994,0.00024555,7]
[390883145,1760191854230,-822.74399,0.00024555,7]
[390883146,1760191854240,-151.0,0.00024555,7]
[390883147,1760191854249,-154.3911797,0.00024556,2]
[390883148,1760191854258,-151.0,0.00024556,7]
[390883149,1760191854268,-151.0,0.00024556,7]
[390883150,1760191854277,-301.28867593,0.00024556,2]
[390883151,1760191854287,-151.0,0.00024556,7]
[390883152,1760191854296,-151.0,0.00024556,7]
[390883153,1760191854306,-151.0,0.00024556,7]
[390883154,1760191854316,-151.0,0.00024556,7]
[390883155,1760191854325,-151.0,0.00024556,7]
[390883156,1760191854334,-151.0,0.00024556,7]
[390883157,1760191854344,-151.0,0.00024556,7]
[390883158,1760191854353,-151.0,0.00024556,7]
[390883159,1760191854364,-151.0,0.00024556,7]
[390883160,1760191854373,-151.0,0.00024556,7]
[390883161,1760191854382,-151.0,0.00024556,7]
[390883162,1760191854391,-151.0,0.00024556,7]
[390883163,1760191854400,-151.0,0.00024556,7]
[390883164,1760191854410,-151.0,0.00024556,7]
[390883165,1760191854419,-272.855,0.00024556,7]
[390883166,1760191854429,-2609.37557469,0.00024556,7]
[390883167,1760191854438,-151.0,0.00024556,7]
[390883168,1760191854447,-151.0,0.00024556,7]
[390883169,1760191854456,-151.0,0.00024556,7]
[390883170,1760191854465,-151.0,0.00024556,7]
[390883171,1760191854475,-630.27999147,0.00024556,2]
[390883172,1760191854484,-2609.37557469,0.00024556,7]
[390883173,1760191854493,-500.0,0.00024573,2]
[390883174,1760191854502,-500.0,0.00024573,2]
[390883175,1760191854511,-500.0,0.00024573,2]
[390883176,1760191854520,-200.3281324,0.00024573,2]
[390883177,1760191854530,-183.67583916,0.00024573,2]
[390883178,1760191854540,-168.0,0.00024575,2]
[390883179,1760191854550,-983.362,0.000246,2]
[390883180,1760191854559,-151.0,0.000246,10]
[390883181,1760191854569,-151.0,0.000246,7]
[390883182,1760191854578,-151.0,0.000246,5]
[390883183,1760191854587,-783.5617198,0.000246,2]
[390883184,1760191854597,-1166.18773833,0.00024626,2]
[390883185,1760191854606,-500.0,0.00024657,9]
[390883186,1760191854614,-500.0,0.00024657,9]
[390883187,1760191854623,-500.0,0.00024657,9]
[390883188,1760191854632,-500.0,0.00024657,9]
[390883189,1760191854642,-500.5789636,0.00024657,9]
[390883190,1760191854651,-500.0,0.00024657,9]
[390883191,1760191854660,-500.0,0.00024657,9]
[390883192,1760191854669,-500.73762816,0.00024657,9]
[390883193,1760191854679,-500.0,0.00024657,9]
[390883194,1760191854687,-500.0,0.00024657,9]
[390883195,1760191854697,-500.0,0.00024657,9]
[390883196,1760191854705,-500.0,0.00024657,9]
[390883197,1760191854715,-500.0,0.00024657,9]
[390883198,1760191854724,-2248.25,0.00024657,9]
[390883199,1760191854733,-2248.25,0.00024657,9]
[390883200,1760191854742,-2248.25,0.00024657,9]
[390883201,1760191854751,-2248.25,0.00024657,9]
[390883202,1760191854761,-2248.25,0.00024657,9]
[390883203,1760191854770,-2248.25,0.00024657,9]
[390883204,1760191854781,-2248.25,0.00024657,9]
[390883205,1760191854790,-2248.25,0.00024657,9]
[390883206,1760191854799,-2248.25,0.00024657,9]
[390883207,1760191854808,-2248.25,0.00024657,9]
[390883208,1760191854817,-2248.25,0.00024657,9]
[390883209,1760191854826,-2248.25,0.00024657,9]
[390883210,1760191854835,-2248.25,0.00024657,9]
[390883211,1760191854844,-2248.25,0.00024657,9]
[390883212,1760191854853,-2248.25,0.00024657,9]
[390883213,1760191854863,-2248.25,0.00024657,9]
[390883214,1760191854872,-2248.25,0.00024657,9]
[390883215,1760191854881,-2248.25,0.00024657,9]
[390883216,1760191854891,-2248.25,0.00024657,9]
[390883217,1760191854902,-2248.25,0.00024657,9]
[390883218,1760191854911,-2248.25,0.00024657,9]
[390883219,1760191854920,-2248.25,0.00024657,9]
[390883220,1760191854929,-2248.25,0.00024657,9]
[390883221,1760191854939,-2248.33,0.00024657,9]
[390883222,1760191854947,-500.0,0.00024657,9]
[390883223,1760191854956,-500.0,0.00024657,9]
[390883224,1760191854966,-500.0,0.00024657,9]
[390883225,1760191854977,-500.0,0.00024657,9]
[390883226,1760191854987,-500.0,0.00024657,9]
[390883227,1760191854997,-500.0,0.00024657,9]
[390883228,1760191855006,-500.0,0.00024657,9]
[390883229,1760191855015,-155.41084537,0.00024657,9]
[390883230,1760191855024,-500.0,0.00024657,9]
[390883231,1760191855034,-500.0,0.00024657,9]
[390883232,1760191855043,-500.0,0.00024657,9]
[390883233,1760191855053,-500.0,0.00024657,9]
[390883234,1760191855062,-500.0,0.00024657,9]
[390883235,1760191855072,-500.0,0.00024657,9]
[390883236,1760191855081,-500.0,0.00024657,9]
[390883237,1760191855090,-500.0,0.00024657,9]
[390883238,1760191855099,-500.0,0.00024657,9]
[390883239,1760191855108,-500.0,0.00024657,9]
[390883240,1760191855117,-500.0,0.00024657,9]
[390883241,1760191855126,-500.0,0.00024657,9]
[390883242,1760191855135,-500.0,0.00024657,9]
[390883243,1760191855144,-500.0,0.00024657,9]
[390883244,1760191855154,-500.0,0.00024657,9]
[390883245,1760191855163,-500.0,0.00024657,9]
[390883246,1760191855173,-500.0,0.00024657,9]
[390883247,1760191855183,-500.0,0.00024657,9]
[390883248,1760191855192,-500.0,0.00024657,9]
[390883249,1760191855202,-500.0,0.00024657,9]
[390883250,1760191855211,-500.0,0.00024657,9]
[390883251,1760191855220,-500.0,0.00024657,9]
[390883252,1760191855229,-500.0,0.00024657,9]
[390883253,1760191855239,-500.0,0.00024657,9]
[390883254,1760191855248,-500.0,0.00024657,9]
[390883255,1760191855257,-302.02,0.00024657,9]
[390883256,1760191855267,-500.0,0.00024657,9]
[390883257,1760191855275,-388.4,0.00024657,9]
[390883258,1760191855286,-629.34,0.00024657,9]
[390883259,1760191855295,-500.0,0.00024657,9]
[390883260,1760191855305,-304.08,0.00024657,9]
[390883261,1760191855314,-546.46,0.00024657,9]
[390883262,1760191855324,-500.0,0.00024657,9]
[390883263,1760191855333,-500.0,0.00024657,9]
[390883264,1760191855342,-500.0,0.00024657,9]
[390883265,1760191855351,-500.0,0.00024657,9]
[390883266,1760191855360,-500.0,0.00024657,9]
[390883267,1760191855369,-500.0,0.00024657,9]
[390883268,1760191855379,-500.0,0.00024657,9]
[390883269,1760191855388,-500.0,0.00024657,9]
[390883270,1760191855397,-241.28,0.00024657,9]
[390883271,1760191855406,-500.0,0.00024657,9]
[390883272,1760191855415,-587.48,0.00024657,9]
[390883273,1760191855425,-500.0,0.00024657,9]
[390883274,1760191855434,-500.0,0.00024657,9]
[390883275,1760191855443,-500.40576881,0.00024657,9]
[390883276,1760191855452,-500.0,0.00024657,9]
[390883277,1760191855462,-493.06370054,0.00024657,9]
[390883278,1760191855472,-500.0,0.00024657,9]
[390883279,1760191855481,-500.0,0.00024657,9]
[390883280,1760191855491,-271.17,0.00024657,9]
[390883281,1760191855500,-160.478811,0.00024658,7]
[390883282,1760191855510,-924.98,0.00024663,2]
[390883283,1760191855519,-500.0,0.00024673,2]
[390883284,1760191855528,-500.0,0.00024673,2]
[390883285,1760191855538,-500.0,0.00024673,2]
[390883286,1760191855547,-500.2607671,0.00024673,2]
[390883287,1760191855556,-500.0,0.00024673,2]
[390883288,1760191855565,-500.0,0.00024673,2]
[390883289,1760191855574,-342.36944102,0.00024673,2]
[390883290,1760191855584,-562.33057242,0.00024673,2]
[390883291,1760191855593,-500.0,0.00024677,9]
[390883292,1760191855602,-500.0,0.00024678,9]
[390883293,1760191855611,-500.0,0.00024678,9]
[390883294,1760191855620,-638.12907234,0.00024678,9]
[390883295,1760191855629,-151.0,0.000247,8]
[390883296,1760191855638,-151.0,0.000247,10]
[390883297,1760191855647,-151.0,0.000247,9]
[390883298,1760191855656,-500.0,0.00024753,3]
[390883299,1760191855665,-2609.37557469,0.00024789,7]
[390883300,1760191855674,-151.0,0.000248,9]
[390883301,1760191855683,-151.0,0.000248,7]
[390883302,1760191855692,-151.0,0.000248,7]
[390883303,1760191855701,-151.0,0.000248,6]
[390883304,1760191855710,-151.0,0.000248,6]
[390883305,1760191855719,-14057.9294209,0.00024804,2]
[390883306,1760191855728,-21670.162572,0.00024805,2]
[390883307,1760191855737,-500.0,0.00024873,2]
[390883308,1760191855745,-177.53631474,0.0002488,2]
[390883309,1760191855754,-545.13355277,0.00024899,2]
[390883310,1760191855763,-500.0,0.00024899,2]
[390883311,1760191855771,-500.0,0.00024899,2]
[390883312,1760191855778,-167.67945152,0.00024899,2]
[390883313,1760191855786,-1000.0,0.000249,2]
[390883314,1760191855794,-151.0,0.000249,6]
[390883315,1760191855802,-151.0,0.000249,10]
[390883316,1760191855809,-151.0,0.000249,9]
[390883317,1760191855818,-23807.63386399,0.000249,2]
[390883318,1760191855910,289.77457581,0.00024434,2]
[390883319,1760191855969,411.81,0.00024424,10]
[390883320,1760191855998,2960.31,0.00024,2]
[390883321,1760191869336,5000.0,0.00024255,2]
[390883322,1760191890065,1213.12782561,0.00023924,2]
[390883323,1760191890364,1213.12782561,0.00024174,2]
[390883326,1760191892359,201.81,0.00019296,2]
[390883327,1760191892501,2371.94434878,0.00024255,2]
[390883328,1760191892524,2628.00565122,0.00024255,2]
[390883331,1760191892779,403.63,0.00021051,2]
[390883334,1760191893274,605.44,0.00022805,2]
[390883345,1760191896610,169.4628755,0.00011827,2]
[390883346,1760191915701,5000.0,0.00024255,2]
[390883347,1760191938393,4830.5471245,0.00024255,2]
[390883349,1760191980029,194.95,0.00018898,2]
[390883350,1760191980448,389.91,0.00020616,2]
[390883351,1760191980933,584.86,0.00022334,2]
[390883352,1760191981191,-169.4528755,0.00024255,2]
[390883353,1760191981412,779.81,0.00024052,2]
[390883356,1760192042342,300.0,0.00024333,2]
[390883357,1760192060554,170.14,0.00019223,2]
[390883358,1760192060893,340.28,0.00020971,2]
[390883359,1760192061295,510.42,0.00022718,2]
[390883360,1760192071876,226.205,0.00024333,2]
[390883361,1760192071906,500.0,0.00024333,2]
[390883362,1760192071934,472.14700563,0.00024333,2]
[390883363,1760192071966,500.0,0.00024333,2]
[390883364,1760192071996,500.0,0.00024333,2]
[390883365,1760192072026,176.92433345,0.00024333,2]
[390883366,1760192072058,500.0,0.00024333,2]
[390883367,1760192072086,265.30131064,0.00024333,2]
[390883368,1760192072114,500.0,0.00024333,2]
[390883369,1760192072141,500.0,0.00024333,2]
[390883370,1760192072167,500.0,0.00024333,2]
[390883371,1760192072194,323.97357465,0.00024333,2]
[390883372,1760192072223,500.0,0.00024333,2]
[390883373,1760192072256,500.0,0.00024333,2]
[390883374,1760192072284,500.0,0.00024333,2]
[390883375,1760192072312,500.0,0.00024333,2]
[390883376,1760192072347,500.0,0.00024333,2]
[390883377,1760192072377,500.0,0.00024333,2]
[390883378,1760192072405,338.77530713,0.00024333,2]
[390883379,1760192072434,375.8434685,0.00024333,2]
[390883380,1760192075882,-124.1565315,0.00024333,2]
[390883381,1760192075913,-500.0,0.00024333,2]
[390883382,1760192082189,179.67648912,0.00023921,2]
[390883383,1760192090773,183.0,0.00020575,3]
[390883384,1760192101416,300.0,0.00024333,2]
[390883385,1760192102097,291.0,0.00024333,2]
[390883386,1760192102212,300.0,0.00024333,2]
[390883387,1760192102301,300.0,0.00024333,2]
[390883389,1760192108264,1200.0,0.00024333,2]
[390883390,1760192138962,831.32,0.00024324,3]
[390883391,1760192142282,157.15,0.00019217,2]
[390883392,1760192142595,314.3,0.00020964,2]
[390883393,1760192143173,471.44,0.00022711,2]
[390883394,1760192149725,831.32,0.00024324,3]
[390883395,1760192150052,2004.97,0.00024,2]
[390883396,1760192162899,300.0,0.00024333,2]
[390883398,1760192222369,300.0,0.00024333,2]
[390883399,1760192223503,150.0,0.00019232,2]
[390883400,1760192224514,290.3,0.0002098,2]
[390883401,1760192224969,435.44,0.00022729,2]
[390883402,1760192246251,890.0,0.00024333,2]
[390883403,1760192253110,2803.1642836,0.00024234,2]
[390883404,1760192265386,2577.279,0.00024334,2]
[390883405,1760192282581,300.0,0.00024333,2]
[390883406,1760192303199,150.0,0.00018902,2]
[390883407,1760192303795,268.0,0.0002062,2]
[390883408,1760192304196,402.01,0.00022338,2]
[390883409,1760192304646,536.01,0.00024057,2]
[390883410,1760192305425,-205.10522659,0.00024334,2]
[390883411,1760192306506,-7981.84408968,0.00024334,2]
[390883412,1760192306638,-10000.01,0.00024334,2]
[390883413,1760192306787,-10000.01,0.00024334,2]
[390883414,1760192306951,-10000.01,0.00024334,2]
[390883417,1760192309086,-10000.01,0.00024334,2]
[390883418,1760192309327,-10000.01,0.00024334,2]
[390883419,1760192309449,-10000.01,0.00024334,2]
[390883420,1760192309586,-10000.01,0.00024334,2]
[390883421,1760192309755,-10000.01,0.00024334,2]
[390883422,1760192309859,-10000.01,0.00024334,2]
[390883423,1760192311116,-10000.01,0.00024334,2]
[390883424,1760192311229,-10000.01,0.00024334,2]
[390883425,1760192311374,-10000.01,0.00024334,2]
[390883426,1760192311521,-10000.01,0.00024334,2]
[390883427,1760192382058,2000.0,0.00027397,120]
[390883428,1760192383256,150.0,0.00019137,2]
[390883429,1760192383700,233.49,0.00020876,2]
[390883430,1760192383815,3250.02,0.00024334,2]
[390883431,1760192384139,350.23,0.00022616,2]
[390883432,1760192393930,3000.0,0.00024334,2]
[390883433,1760192402056,300.0,0.00024333,2]
[390883434,1760192402512,287.0,0.00024333,2]
[390883435,1760192408433,250.0,0.00024334,2]
[390883436,1760192409089,250.0,0.00024334,2]
[390883437,1760192409757,250.0,0.00024334,2]
[390883438,1760192410365,250.0,0.00024334,2]
[390883439,1760192411002,1429.27,0.00024334,2]
[390883440,1760192411026,1570.73,0.00024334,2]
[390883441,1760192411073,250.0,0.00024334,2]
[390883442,1760192411687,250.0,0.00024334,2]
[390883443,1760192420977,500.0,0.00024334,2]
[390883444,1760192421668,500.0,0.00024334,2]
[390883445,1760192422405,500.0,0.00024334,2]
[390883446,1760192422988,500.0,0.00024334,2]
[390883447,1760192423630,291.6725299,0.00024334,2]
[390883458,1760192463291,300.0,0.00024333,2]
[390883459,1760192464243,150.0,0.00019137,2]
[390883460,1760192464828,214.81,0.00020877,2]
[390883461,1760192465268,322.22,0.00022616,2]
[390883462,1760192476061,1000.0,0.00024333,2]
[390883464,1760192516357,5721.3074701,0.00024,2]
[390883465,1760192516381,10000.01,0.00024,2]
[390883466,1760192516405,4278.6825299,0.00024,2]
[390883467,1760192530975,5000.0,0.00024334,2]
[390883468,1760192538965,5000.0,0.00024334,2]
[390883469,1760192547142,0.01,0.00024334,2]
[390883470,1760192547167,557.73500556,0.00024334,2]
[390883471,1760192555113,5000.0,0.00024334,2]
[390883472,1760192555685,150.0,0.0001907,2]
[390883473,1760192556136,197.32,0.00020803,2]
[390883474,1760192556549,295.98,0.00022537,2]
[390883475,1760192556992,394.65,0.0002427,2]
[390883476,1760192563372,3404.32499444,0.00024334,2]
[390883477,1760192565467,-1595.67500556,0.00024334,2]
[390883478,1760192574324,-4999.97,0.00024091,10]
[390883479,1760192576477,-4466.57,0.00024,2]
[390883480,1760192576595,-1066.87,0.00024,2]
[390883481,1760192576887,-9392.45745898,0.00024334,2]
[390883482,1760192578367,-10000.01,0.00024334,2]
[390883483,1760192578775,-10000.01,0.00024334,2]
[390883484,1760192581079,-5000.0,0.00024091,10]
[390883485,1760192581137,0.01,0.00024,2]
[390883486,1760192583415,-0.02,0.00024,2]
[390883487,1760192583448,-9999.96,0.00024,2]
[390883488,1760192585212,-0.01,0.00024,2]
[390883489,1760192585251,-9999.99,0.00024,2]
[390883490,1760192585536,-0.04,0.00024,2]
[390883491,1760192588418,5000.0,0.0002376,10]
[390883492,1760192589585,4999.93,0.00024,2]
[390883493,1760192589607,5000.07,0.00024,2]
[390883494,1760192592518,4466.51,0.00024,2]
[390883495,1760192600463,533.43,0.00024,2]
[390883496,1760192600485,10000.01,0.00024,2]
[390883497,1760192600506,10000.01,0.00024,2]
[390883498,1760192600527,4466.55,0.00024,2]
[390883499,1760192600896,5533.46,0.0002415,2]
[390883500,1760192600921,10000.01,0.0002415,2]
[390883501,1760192600944,5000.08,0.0002415,2]
[390883502,1760192604510,5000.0,0.00024334,2]
[390883503,1760192604750,5000.01,0.00024,2]
[390883504,1760192604774,4999.99,0.00024,2]
[390883505,1760192609977,4466.47,0.00024,2]
[390883506,1760192612444,533.55,0.00024334,2]
[390883507,1760192612468,4466.45,0.00024334,2]
[390883508,1760192620797,1666.08375323,0.00024334,2]
[390883509,1760192628986,5000.0,0.00024334,2]
[390883510,1760192635806,150.0,0.0001904,2]
[390883511,1760192636243,223.0,0.00020771,2]
[390883512,1760192636696,334.5,0.00022502,2]
[390883513,1760192637191,445.99,0.00024233,2]
[390883514,1760192637311,2180.43624677,0.00024334,2]
[390883515,1760192637334,2819.56375323,0.00024334,2]
[390883516,1760192652858,5000.0,0.00024334,2]
[390883517,1760192660107,-2714.07624677,0.00024334,2]
[390883518,1760192660875,2180.44624677,0.00024334,2]
[390883519,1760192662029,-2819.55375323,0.00024334,2]
[390883520,1760192662086,-2180.45624677,0.00024334,2]
[390883521,1760192663990,-10000.01,0.00024334,2]
[390883522,1760192676437,5000.0,0.00024334,2]
[390883523,1760192682873,393.07,0.00024324,3]
[390883524,1760192684496,4606.94,0.00024334,2]
[390883525,1760192684522,393.06,0.00024334,2]
[390883526,1760192693300,5000.0,0.00024334,2]
[390883527,1760192701425,4606.95,0.00024334,2]
[390883528,1760192709603,5000.0,0.00024254,2]
[390883529,1760192716348,150.0,0.00019001,2]
[390883530,1760192716957,232.18,0.00020729,2]
[390883531,1760192717386,348.28,0.00022456,2]
[390883532,1760192717847,464.37,0.00024183,2]
[390883533,1760192729565,1137.914826,0.00013699,2]
[390883534,1760192729768,1137.914826,0.00020187,2]
[390883536,1760192732485,1529.350348,0.00024254,2]
[390883537,1760192732511,3470.649652,0.00024254,2]
[390883538,1760192755089,5000.0,0.00024254,2]
[390883546,1760192769204,1213.12782562,0.0002386,2]
[390883547,1760192769538,316.23252238,0.00024252,2]
[390883548,1760192769565,896.89530324,0.00024252,2]
[390883549,1760192778159,4575.2005613,0.00024254,2]
[390883550,1760192792226,357.02762367,0.00024224,2]
[390883551,1760192795653,150.0,0.00018977,2]
[390883552,1760192796073,245.71,0.00020702,2]
[390883553,1760192796507,368.56,0.00022428,2]
[390883554,1760192796936,491.42,0.00024153,2]
[390883555,1760192800681,4902.70456988,0.00024254,2]
[390883557,1760192823369,5000.0,0.00024254,2]
[390883559,1760192874659,97.30543012,0.00018939,2]
[390883560,1760192874687,52.69456988,0.00018939,2]
[390883561,1760192875071,288.13,0.00020661,2]
[390883562,1760192875513,432.2,0.00022382,2]
[390883563,1760192875920,576.26,0.00024104,2]
[390883565,1760192891518,666.0,0.00023334,2]
[390883566,1760192903876,5000.0,0.00024254,2]
[390883567,1760192909372,2984.72543012,0.00017,2]
[390883568,1760192909397,170.51588847,0.00017,2]
[390883580,1760192920239,5542.8666387,0.00024142,2]
[390883581,1760192927386,4286.62747283,0.00024254,2]
[390883582,1760192927411,713.37252717,0.00024254,2]
[390883583,1760192935584,5000.0,0.00024254,2]
[390883584,1760192951291,4286.63747283,0.00024254,2]
[390883585,1760192951321,713.36252717,0.00024254,2]
[390883586,1760192955003,150.0,0.00018859,2]
[390883587,1760192955492,287.63,0.00020573,2]
[390883588,1760192955959,431.44,0.00022288,2]
[390883589,1760192956452,575.25,0.00024002,2]
[390883590,1760192959645,3901.22132015,0.00024254,2]
[390883591,1760192963546,750.0,0.00027,120]
[390883592,1760192963963,652.8211548,0.00024109,12]
[390883593,1760192975107,3288.28499788,0.00024254,2]
[390883594,1760192975134,1711.71500212,0.00024254,2]
[390883595,1760192983011,5000.0,0.00024254,2]
[390883596,1760192991292,750.0,0.00027,120]
[390883597,1760192998504,5000.0,0.00024254,2]
[390883608,1760193003082,0.01,0.00024224,2]
[390883609,1760193003309,205.09522659,0.00024224,2]